Workbook

Sheet Einführung

Sheet Fundamentale Analyse
B1: Fundamentale Analyse
B3: Geben Sie die Zahlen in die gelb markierten Felder ein
C5: Datum der Analyse | D5: 2009-05-15
C7: Aktuelle Kennwerte der Aktie | G7: Fünfjahres-Durchschnitte | N7: Begriffe:
C8: Firma: | D8: VCA Antech | I8: EK-Rendite | J8: =AVERAGE($K$25:$K$29) -> 
C9: Ticker: | D9: WOOF | I9: Ausschüttungsquote | J9: =AVERAGE($L$25:$L$29) ->  | N9: GPA | O9: = Gewinn pro Aktie
C10: Kurs: | D10: 0 | I10: KGV Hoch | J10: =AVERAGE($I$25:$I$29) ->  | N10: DPA | O10: = Dividende pro Aktie
C11: GPA | D11: 0 | I11: KGV Tief | J11: =AVERAGE($J$25:$J$29) ->  | N11: BWPA | O11: = Buchwert pro Aktie
C12: DPA | D12: 0 | I12: KGV | J12: =AVERAGE($J$10:$J$11) ->  | N12: KGV | O12: = Kurs-Gewinn Verhältnis
C13: BWPA | D13: 0 | I13: Nachhaltige Wachstumsrate | J13: =$J$8*(1-$J$9) ->  | N13: EKR | O13: = Eigenkapitalrendite
C14: KGV | D14: =$D$10/$D$11 ->  | I14: (EKR * (1 - Aussch.quote))
C15: Gewinn-Rendite | D15: =$D$11/$D$10 -> 
C16: Dividenden-Rendite | D16: =$D$12/$D$10 -> 
C17: P/BW | D17: =$D$10/$D$13 -> 
C19: Rendite Bundesanleihen | D19: 0.015
B21: Historische Unternehmenskennzahlen
F22: Preis | I22: KGV | L22: Ausschüttungs
B23: Jahr | C23: GPA | D23: DPA | E23: BWPA | F23: Hoch | G23: Tief | I23: Hoch | J23: Tief | K23: EKR | L23: Quote
B24: Jahr 6 | C24: 0 | D24: 0 | E24: 0 | F24: 0 | G24: 0 | I24: =F24/$C24 ->  | K24: =C24/E24 ->  | L24: =D24/C24 -> 
B25: Jahr 5 | C25: 0 | D25: 0 | E25: 0 | F25: 0 | G25: 0
B26: Jahr 4 | C26: 0 | D26: 0 | E26: 0 | F26: 0 | G26: 0
B27: Jahr 3 | C27: 0 | D27: 0 | E27: 0 | F27: 0 | G27: 0
B28: Jahr 2 | C28: 0 | D28: 0 | E28: 0 | F28: 0 | G28: 0
B29: Jahr 1 | C29: 0 | D29: 0 | E29: 0 | F29: 0 | G29: 0
F31: Preis
C32: GPA | D32: DPA | E32: BWPA | F32: Hoch | G32: Tief
B34: Jährliche Wachstumsraten (5 Jahre) | I34: [(Jahr 1 / Jahr 6) ^ (1/5)] - 1
C35: =(C29/C24)^(1/5)-1 ->  | D35: =(D29/D24)^(1/5)-1 ->  | E35: =(E29/E24)^(1/5)-1 ->  | F35: =(F29/F24)^(1/5)-1 ->  | G35: =(G29/G24)^(1/5)-1 -> 
B37: Jährliche Wachstumsraten (3 Jahre) | I37: [(Jahr 1 / Jahr 4) ^ (1/3)] - 1
C38: =(C29/C26)^(1/3)-1 ->  | D38: =(D29/D26)^(1/3)-1 ->  | E38: =(E29/E26)^(1/3)-1 ->  | F38: =(F29/F26)^(1/3)-1 ->  | G38: =(G29/G26)^(1/3)-1 -> 
B41: Projizierte Unternehmenskennzahlen basierend auf historischen Wachstumsraten
B43: Jahr | C43: GPA | D43: DPA
B44: Heute | C44: =$D$11 -> 0 | D44: =C44*$J$9 ->  | G44: =$C$54 ->  | H44: Firmen-Gewinn nach 10 Jahren
B45: Jahr 1 | C45: =C44*(1+$C$35) ->  | G45: =SUM($D$44:$D$54) ->  | H45: Summe aller über 10 Jahre gezahlten Dividenden
B46: Jahr 2
B47: Jahr 3 | G47: =$J$12*$G$44 ->  | H47: Projizierter Preis (Durchschn. KGV * GPA)
B48: Jahr 4 | G48: =$G$47+$G$45 ->  | H48: Wert Total (Projizierter Preis + Dividenden)
B49: Jahr 5
B50: Jahr 6 | G50: =$G$48-$D$10 ->  | H50: Gewinn der Investition (Projizierter Preis + Dividenden - Preis heute)
B51: Jahr 7 | G51: =($G$48/$D$10)^0.1-1 ->  | H51: Projizierte Jahresrendite basierend auf historischem GPA-Wachstum
B52: Jahr 8 | H52: [(Wert Total / Preis heute) ^ (1/10)] - 1
B53: Jahr 9
B54: Jahr 10
B57: Projizierte Unternehmenskennzahlen basierend auf nachhaltiger Wachstumsrate
B59: Jahr | C59: BWPA | D59: GPA | E59: DPA
B60: Heute | C60: =$D$13 -> 0 | D60: =$D$11 -> 0 | E60: =D60*$J$9 ->  | G60: =$D$70 ->  | H60: Firmen-Gewinn nach 10 Jahren (BWPA * EKR)
B61: Jahr 1 | C61: =C60+D60-E60 ->  | D61: =C61*$J$8 ->  | G61: =SUM($E$60:$E$70) ->  | H61: Summe aller über 10 Jahre gezahlten Dividenden
B62: Jahr 2
B63: Jahr 3 | G63: =$J$12*$G$60 ->  | H63: Projizierter Preis (Durchschn. KGV * GPA)
B64: Jahr 4 | G64: =$G$63+$G$61 ->  | H64: Wert Total (Projizierter Preis + Dividenden)
B65: Jahr 5
B66: Jahr 6 | G66: =G64-D10 ->  | H66: Gewinn der Investition (Projizierter Preis + Dividenden - Preis heute)
B67: Jahr 7 | G67: =($G$64/$D$10)^0.1-1 ->  | H67: Projizierte Jahresrendite basierend auf nachhaltiger Wachstumsrate
B68: Jahr 8 | H68: [(Wert Total) / Preis heute) ^ (1/10)] - 1
B69: Jahr 9
B70: Jahr 10

Sheet Aktienbewertung
A2: Aktienbewertung
F6: Gewinn pro Aktie
F7: year 0 | G7: year 1 | H7: year 2 | I7: year 3 | J7: year 4 | K7: year 5 | L7: year 6 | M7: year 7 | N7: year 8 | O7: year 9 | P7: year 10 | Q7: onwards (yearly)
A8: Aktueller Gewinn pro Aktie | D8: 1 | F8: =+D8 -> 1 | G8: =$F$8*(1+$D$10/100)^1 -> 1 | H8: =$F$8*(1+$D$10/100)^2 -> 1 | I8: =$F$8*(1+$D$10/100)^3 -> 1 | J8: =$I$8*(1+$D$12/100)^1 -> 1 | K8: =$I$8*(1+$D$12/100)^2 -> 1 | L8: =$K$8*(1+$D$14/100)^1 -> 1 | M8: =$K$8*(1+$D$14/100)^2 -> 1 | N8: =$K$8*(1+$D$14/100)^3 -> 1 | O8: =$K$8*(1+$D$14/100)^4 -> 1 | P8: =$K$8*(1+$D$14/100)^5 -> 1 | Q8: =+P8 -> 1
F9: Nettobarwert (NPV) pro Aktie
A10: Erwartete Wachstumsrate Jahre 1-3 in % | D10: 0 | F10: year 0 | G10: year 1 | H10: year 2 | I10: year 3 | J10: year 4 | K10: year 5 | L10: year 6 | M10: year 7 | N10: year 8 | O10: year 9 | P10: year 10 | Q10: npv onwards
F11: =+D8 -> 1 | G11: =+G8/(1+$D$16/100)^1 -> 0.9259259259 | H11: =+H8/(1+$D$16/100)^2 -> 0.8573388203 | I11: =+I8/(1+$D$16/100)^3 -> 0.793832241 | J11: =+J8/(1+$D$16/100)^4 -> 0.7350298528 | K11: =+K8/(1+$D$16/100)^5 -> 0.680583197 | L11: =+L8/(1+$D$16/100)^6 -> 0.6301696269 | M11: =+M8/(1+$D$16/100)^7 -> 0.5834903953 | N11: =+N8/(1+$D$16/100)^8 -> 0.5402688845 | O11: =+O8/(1+$D$16/100)^9 -> 0.5002489671 | P11: =+P8/(1+$D$16/100)^10 -> 0.4631934881 | Q11: =+Q8/(D16/100)/(1+D16/100)^11 -> 5.361035742
A12: Erwartete Wachstumsrate Jahre 4-5 in % | D12: 0
A14: Erwartete Wachstumsrate Jahre 6-10 in % | D14: 0
A16: Risikoadjustierter Eigenkapitalkostensatz in % | D16: 8
A18: Theoretischer Preis der Aktie | D18: =SUM(F11:Q11) -> 13.07111714
A20: Aktueller Kurs der Aktie | D20: 30
A22: Aktuelle theoretische Überbewertung (-) resp.
A23: Unterbewertung (+) | D23: =D18-D20 -> -16.92888286
A25: Anzahl Aktien (optionale Eingabe) | D25: 0
A27: Aktueller Gewinn des Unternehmens | D27: =D25*D8 -> 0
A29: KGV theoretisch | D29: =D18/D8 -> 13.07111714
A31: KGV aktuell | D31: =D20/D8 -> 30
